[Event "Polish Ekstraliga 2024"]
[Site "Walbrzych"]
[Date "2024.10.10"]
[Round "4.19"]
[White "Svane, Rasmus"]
[Black "Licznerski, Lukasz"]
[Result "1-0"]
[ECO "D17"]
[WhiteElo "2629"]
[BlackElo "2430"]
[Annotator "RC"]
[PlyCount "71"]
[EventDate "2024.10.05"]
[EventType "team-tourn"]
[EventCountry "POL"]
[SourceTitle "playchess.com"]
[Source "ChessBase"]
[SourceQuality "1"]
[WhiteTeam "Gliwice"]
[BlackTeam "Wisznia Mala"]
[TimeControl "40/5400+30:1800+30"]

1. Nf3 {[%emt 0:00:02]} d5 {[%emt 0:03:40]} 2. d4 {[%emt 0:02:30]} Nf6 {[%emt 0:00:07]} 3. c4 {[%emt 0:01:39]} c6 {[%emt 0:00:02]} 4. Nc3 {[%emt 0:00:32]} dxc4 {[%emt 0:00:08]} 5. a4 {[%emt 0:00:19]} Bf5 {[%emt 0:00:08]} 6. Ne5 {[%emt 0:00:17]} Nbd7 {[%emt 0:00:56]} 7. Nxc4 Qc7 8. g3 {[%emt 0:01:43]} e5 {[%emt 0:00:11]} 9. dxe5 {[%emt 0:00:17]} Nxe5 {[%emt 0:00:02]} 10. Bf4 {[%emt 0:00:22]} Nfd7 {[%emt 0:00:04]} 11. Bg2 {[%emt 0:02:12]} g5 {[%emt 0:26:13]} 12. Ne3 {[%emt 0:01:03]} gxf4 {[%emt 0:00:06]} 13. Nxf5 {[%emt 0:00:08]} O-O-O {[%emt 0:00:40]} 14. Qc2 {[%emt 0:00:38]} Bb4 {[%emt 0:08:00]} 15. O-O {[%emt 0:24:33]} fxg3 {[%emt 0:00:43]} 16. hxg3 {[%emt 0:00:12]} Kb8 {[%emt 0:16:53]} 17. Na2 {[%emt 0:11:32]} Qb6 {[%emt 0:05:44]} 18. Rad1 {[%emt 0:18:13]} a5 {[%emt 0:06:22]} 19. Nxb4 {[%emt 0:03:03]} axb4 {[%emt 0:03:37]} 20. Qe4 {[%emt 0:09:22]} Ng6 {[%emt 0:05:30]} 21. Nd6 {[%emt 0:04:38]} Nde5 {[%emt 0:00:28]} 22. Nc4 {[%emt 0:08:20]} Qc5 {[%emt 0:01:26]} 23. Nxe5 {[%emt 0:00:10]} Nxe5 {[%emt 0:00:08]} 24. e3 {[%emt 0:00:49]} Qa5 {[%emt 0:07:01]} 25. b3 {[%emt 0:01:53]} Ng6 {[%emt 0:00:54]} 26. Qc4 {[%emt 0:01:36]} f6 {[%emt 0:05:10]} 27. Rd4 {[%emt 0:02:00]} Rxd4 {[%emt 0:02:01]} 28. Qxd4 {[%emt 0:01:15]} Rd8 {[%emt 0:03:35]} 29. Qxf6 {[%emt 0:00:25]} Rd3 {[%emt 0:00:02]} 30. Be4 {[%emt 0:02:29]} Rxb3 {[%emt 0:00:57]} 31. Rd1 {[%emt 0:00:05]} Qe5 {[%emt 0:03:53]} 32. Qd8+ {[%emt 0:01:14]} Ka7 {[%emt 0:00:02]} 33. Bxc6 {[%emt 0:00:15]} Rc3 {[%emt 0:01:44]} 34. Rd5 {[%emt 0:01:48]} Rc1+ {[%emt 0:00:22]} 35. Kh2 {[%emt 0:00:08]} Qxg3+ {[%emt 0:00:40]} 36. Kxg3 {[%emt 0:00:09]} 1-0

[Event "Polish Ekstraliga 2024"]
[Site "Walbrzych"]
[Date "2024.10.10"]
[Round "4.20"]
[White "Sabuk, Piotr"]
[Black "Tomczak, Jacek"]
[Result "0-1"]
[ECO "D30"]
[WhiteElo "2402"]
[BlackElo "2584"]
[Annotator "RC"]
[PlyCount "66"]
[EventDate "2024.10.05"]
[EventType "team-tourn"]
[EventCountry "POL"]
[SourceTitle "playchess.com"]
[Source "ChessBase"]
[SourceQuality "1"]
[WhiteTeam "Wisznia Mala"]
[BlackTeam "Gliwice"]
[TimeControl "40/5400+30:1800+30"]

1. d4 {[%emt 0:02:43]} d5 {[%emt 0:00:19]} 2. c4 {[%emt 0:00:35]} e6 {[%emt 0:00:14]} 3. Nf3 {[%emt 0:01:04]} Nf6 {[%emt 0:01:37]} 4. g3 {[%emt 0:00:52]} dxc4 {[%emt 0:00:21]} 5. Qa4+ {[%emt 0:03:04]} Nbd7 {[%emt 0:00:38]} 6. Bg2 {[%emt 0:01:46]} a6 {[%emt 0:01:12]} 7. Qxc4 {[%emt 0:00:26]} b5 {[%emt 0:00:06]} 8. Qc6 {[%emt 0:02:53]} Rb8 {[%emt 0:00:17]} 9. Qc2 {[%emt 0:00:09]} Bb7 {[%emt 0:03:16]} 10. a4 {[%emt 0:20:02]} c5 {[%emt 0:12:43]} 11. axb5 {[%emt 0:00:44]} axb5 {[%emt 0:00:36]} 12. dxc5 {[%emt 0:04:53]} Bxc5 {[%emt 0:02:23]} 13. O-O {[%emt 0:01:23]} O-O {[%emt 0:01:25]} 14. Nc3 {[%emt 0:01:58]} b4 {[%emt 0:07:27]} 15. Na4 {[%emt 0:01:56]} Be7 {[%emt 0:00:50]} 16. Bf4 {[%emt 0:08:58]} Rc8 {[%emt 0:01:55]} 17. Qd2 {[%emt 0:04:09]} Qa5 {[%emt 0:03:36]} 18. Be3 {[%emt 0:05:50]} Qh5 {[%emt 0:08:09]} 19. h3 {[%emt 0:04:58]} Ne5 {[%emt 0:10:43]} 20. Nxe5 {[%emt 0:09:35]} Bxg2 {[%emt 0:00:23]} 21. Kxg2 {[%emt 0:00:07]} Qxe5 {[%emt 0:00:15]} 22. Qd4 {[%emt 0:04:10]} Qb5 {[%emt 0:01:22]} 23. Qd3 {[%emt 0:03:58]} Qb7+ {[%emt 0:02:31]} 24. f3 {[%emt 0:00:18]} Rfd8 {[%emt 0:01:45]} 25. Qb3 {[%emt 0:00:20]} Qb5 {[%emt 0:02:41]} 26. Rfe1 {[%emt 0:04:55]} h5 {[%emt 0:05:38]} 27. h4 {[%emt 0:00:56]} Nd5 {[%emt 0:00:50]} 28. Bf2 {[%emt 0:00:38]} Bxh4 {[%emt 0:03:00]} 29. e4 {[%emt 0:02:19]} Nf4+ {[%emt 0:01:38]} 30. Kh1 {[%emt 0:07:53]} Nd3 {[%emt 0:01:32]} 31. Re2 {[%emt 0:01:38]} Nxf2+ {[%emt 0:00:34]} 32. Rxf2 {[%emt 0:00:02]} Bxg3 {[%emt 0:00:08]} 33. Rc2 {[%emt 0:00:20]} Qg5 {[%emt 0:01:02]} 0-1

[Event "Polish Ekstraliga 2024"]
[Site "Walbrzych"]
[Date "2024.10.10"]
[Round "4.23"]
[White "Klekowski, Maciej"]
[Black "Skawinski, Arkadiusz"]
[Result "1-0"]
[ECO "C11"]
[WhiteElo "2463"]
[BlackElo "2333"]
[Annotator "RC"]
[PlyCount "79"]
[EventDate "2024.10.05"]
[EventType "team-tourn"]
[EventCountry "POL"]
[SourceTitle "playchess.com"]
[Source "ChessBase"]
[SourceQuality "1"]
[WhiteTeam "Gliwice"]
[BlackTeam "Wisznia Mala"]
[TimeControl "40/5400+30:1800+30"]

1. e4 {[%emt 0:00:03]} e6 {[%emt 0:00:52]} 2. d4 {[%emt 0:00:16]} d5 {[%emt 0:00:04]} 3. Nc3 {[%emt 0:00:07]} Nf6 {[%emt 0:00:25]} 4. e5 {[%emt 0:00:09]} Nfd7 {[%emt 0:00:03]} 5. Nce2 {[%emt 0:00:12]} c5 {[%emt 0:00:07]} 6. c3 {[%emt 0:00:06]} Nc6 {[%emt 0:00:03]} 7. Nf3 {[%emt 0:00:07]} a5 {[%emt 0:00:25]} 8. a4 {[%emt 0:16:38]} Qb6 {[%emt 0:06:18]} 9. g3 {[%emt 0:00:51]} cxd4 {[%emt 0:03:30]} 10. cxd4 {[%emt 0:00:08]} Bb4+ {[%emt 0:02:55]} 11. Nc3 {[%emt 0:01:37]} O-O {[%emt 0:25:26]} 12. Bd3 {[%emt 0:07:13]} f6 {[%emt 0:01:50]} 13. exf6 {[%emt 0:00:13]} Nxf6 {[%emt 0:00:04]} 14. O-O {[%emt 0:00:44]} Bd7 {[%emt 0:03:54]} 15. Be3 {[%emt 0:18:18]} Be8 {[%emt 0:10:15]} 16. Ne5 {[%emt 0:00:15]} Qd8 {[%emt 0:00:06]} 17. Ne2 {[%emt 0:13:28]} Bh5 {[%emt 0:18:53]} 18. f3 {[%emt 0:00:23]} Bd6 {[%emt 0:06:02]} 19. Nf4 {[%emt 0:05:19]} Bf7 {[%emt 0:02:46]} 20. Nxf7 {[%emt 0:00:11]} Rxf7 {[%emt 0:00:38]} 21. Ne2 {[%emt 0:04:20]} Qb6 {[%emt 0:02:21]} 22. Kg2 {[%emt 0:04:52]} Nb4 {[%emt 0:02:54]} 23. Bb1 {[%emt 0:00:55]} Rc8 {[%emt 0:05:11]} 24. Nc3 {[%emt 0:02:05]} Rc4 {[%emt 0:00:36]} 25. Nb5 {[%emt 0:01:05]} Be7 {[%emt 0:01:13]} 26. Ra3 {[%emt 0:00:39]} Ne8 {[%emt 0:00:40]} 27. Rc3 {[%emt 0:01:45]} Rc6 {[%emt 0:00:55]} 28. Bf4 {[%emt 0:00:58]} Bf6 {[%emt 0:03:22]} 29. Re1 {[%emt 0:01:15]} g6 {[%emt 0:00:54]} 30. Qd2 {[%emt 0:03:29]} Ng7 {[%emt 0:00:38]} 31. g4 {[%emt 0:03:39]} Rf8 {[%emt 0:01:29]} 32. Bc7 {[%emt 0:01:24]} Qa6 {[%emt 0:00:12]} 33. h4 {[%emt 0:00:05]} Ne8 {[%emt 0:00:59]} 34. h5 {[%emt 0:00:17]} g5 {[%emt 0:00:32]} 35. h6 {[%emt 0:00:18]} Rf7 {[%emt 0:00:31]} 36. Rxc6 {[%emt 0:03:07]} bxc6 {[%emt 0:00:31]} 37. Rxe6 {[%emt 0:00:04]} Qc8 {[%emt 0:00:13]} 38. Bf5 {[%emt 0:00:04]} cxb5 {[%emt 0:00:27]} 39. Bxa5 {[%emt 0:00:12]} Qb8 {[%emt 0:01:01]} 40. Qxb4 {[%emt 0:00:00]} 1-0

[Event "Polish Ekstraliga 2024"]
[Site "Walbrzych"]
[Date "2024.10.10"]
[Round "4.25"]
[White "Sowinski, Pawel"]
[Black "Bartel, Mateusz"]
[Result "1/2-1/2"]
[ECO "A06"]
[WhiteElo "2455"]
[BlackElo "2608"]
[Annotator "RC"]
[PlyCount "42"]
[EventDate "2024.10.05"]
[EventType "team-tourn"]
[EventCountry "POL"]
[SourceTitle "playchess.com"]
[Source "ChessBase"]
[SourceQuality "1"]
[WhiteTeam "Sedziszow Malopolski"]
[BlackTeam "Polonia Wroclaw"]
[TimeControl "40/5400+30:1800+30"]

1. Nf3 {[%emt 0:00:04]} d5 {[%emt 0:00:24]} 2. g3 {[%emt 0:00:06]} b6 {[%emt 0:00:42]} 3. Bg2 {[%emt 0:01:00]} Bb7 {[%emt 0:00:05]} 4. c4 {[%emt 0:06:00]} dxc4 {[%emt 0:00:44]} 5. Qa4+ {[%emt 0:05:08]} Nd7 {[%emt 0:01:02]} 6. Qxc4 {[%emt 0:00:39]} e6 {[%emt 0:00:10]} 7. O-O {[%emt 0:05:13]} Ngf6 {[%emt 0:00:11]} 8. Nc3 {[%emt 0:01:36]} Be7 {[%emt 0:03:06]} 9. d4 {[%emt 0:02:38]} O-O {[%emt 0:05:15]} 10. Rd1 {[%emt 0:05:48]} Qc8 {[%emt 0:05:45]} 11. Bf4 {[%emt 0:09:19]} c5 {[%emt 0:00:58]} 12. dxc5 {[%emt 0:15:42]} Nxc5 {[%emt 0:03:50]} 13. Nb5 {[%emt 0:05:05]} Bd5 {[%emt 0:01:51]} 14. Qc2 {[%emt 0:18:52]} Qb7 {[%emt 0:02:52]} 15. Nc3 {[%emt 0:00:04]} Rac8 {[%emt 0:05:26]} 16. Nxd5 {[%emt 0:00:07]} Nxd5 {[%emt 0:00:05]} 17. Ng5 {[%emt 0:05:22]} Bxg5 {[%emt 0:01:16]} 18. Bxg5 {[%emt 0:00:06]} h6 {[%emt 0:00:11]} 19. Bf4 {[%emt 0:05:03]} a5 {[%emt 0:04:20]} 20. Bd6 {[%emt 0:02:42]} Rfd8 {[%emt 0:01:04]} 21. Bxc5 {[%emt 0:00:04]} Rxc5 {[%emt 0:02:03]} 1/2-1/2

[Event "Polish Ekstraliga 2024"]
[Site "Walbrzych"]
[Date "2024.10.10"]
[Round "4.27"]
[White "Toczek, Grzegorz"]
[Black "Mastrovasilis, Dimitrios"]
[Result "0-1"]
[ECO "B23"]
[WhiteElo "2267"]
[BlackElo "2532"]
[Annotator "RC"]
[PlyCount "54"]
[EventDate "2024.10.05"]
[EventType "team-tourn"]
[EventCountry "POL"]
[SourceTitle "playchess.com"]
[Source "ChessBase"]
[SourceQuality "1"]
[WhiteTeam "Sedziszow Malopolski"]
[BlackTeam "Polonia Wroclaw"]
[TimeControl "40/5400+30:1800+30"]

1. e4 {[%emt 0:00:03]} c5 {[%emt 0:01:43]} 2. Nc3 {[%emt 0:00:05]} e6 {[%emt 0:01:05]} 3. Nge2 {[%emt 0:00:04]} a6 {[%emt 0:00:59]} 4. g3 {[%emt 0:00:49]} d6 {[%emt 0:01:29]} 5. Bg2 {[%emt 0:00:29]} Nc6 {[%emt 0:00:24]} 6. O-O {[%emt 0:01:38]} Be7 {[%emt 0:00:39]} 7. d4 {[%emt 0:02:34]} cxd4 {[%emt 0:01:08]} 8. Nxd4 {[%emt 0:00:02]} Bd7 {[%emt 0:00:49]} 9. Be3 {[%emt 0:07:54]} Nf6 {[%emt 0:01:20]} 10. h3 {[%emt 0:06:58]} Rc8 {[%emt 0:12:30]} 11. Nxc6 {[%emt 0:06:40]} Bxc6 {[%emt 0:01:47]} 12. a4 {[%emt 0:08:44]} O-O {[%emt 0:10:50]} 13. a5 {[%emt 0:15:13]} Qc7 {[%emt 0:05:09]} 14. Re1 {[%emt 0:01:08]} Nd7 {[%emt 0:01:49]} 15. Ne2 {[%emt 0:00:54]} Nc5 {[%emt 0:21:13]} 16. Bxc5 {[%emt 0:00:56]} dxc5 {[%emt 0:00:04]} 17. Nf4 {[%emt 0:00:44]} Bd6 {[%emt 0:03:55]} 18. Qg4 {[%emt 0:05:42]} Be5 {[%emt 0:04:30]} 19. c3 {[%emt 0:03:23]} Rfd8 {[%emt 0:02:53]} 20. Bf1 {[%emt 0:08:22]} Bxf4 {[%emt 0:05:58]} 21. gxf4 {[%emt 0:00:19]} Bxe4 {[%emt 0:01:09]} 22. Rxe4 {[%emt 0:07:10]} f5 {[%emt 0:00:08]} 23. Qg2 {[%emt 0:00:28]} fxe4 {[%emt 0:00:09]} 24. Qxe4 {[%emt 0:00:03]} Qc6 {[%emt 0:01:58]} 25. Qe3 {[%emt 0:00:05]} Rf8 {[%emt 0:04:04]} 26. Bg2 {[%emt 0:01:02]} Qd6 {[%emt 0:02:04]} 27. Ra4 {[%emt 0:01:16]} Qd1+ {[%emt 0:00:30]} 0-1

[Event "Polish Ekstraliga 2024"]
[Site "Walbrzych"]
[Date "2024.10.10"]
[Round "4.28"]
[White "Gumularz, Szymon"]
[Black "Kyc, Jerzy"]
[Result "1-0"]
[ECO "A30"]
[WhiteElo "2559"]
[BlackElo "2253"]
[Annotator "RC"]
[PlyCount "79"]
[EventDate "2024.10.05"]
[EventType "team-tourn"]
[EventCountry "POL"]
[SourceTitle "playchess.com"]
[Source "ChessBase"]
[SourceQuality "1"]
[WhiteTeam "Polonia Wroclaw"]
[BlackTeam "Sedziszow Malopolski"]
[TimeControl "40/5400+30:1800+30"]

1. c4 {[%emt 0:00:03]} c5 {[%emt 0:00:26]} 2. Nf3 {[%emt 0:00:06]} Nf6 {[%emt 0:00:25]} 3. Nc3 {[%emt 0:00:11]} g6 {[%emt 0:01:16]} 4. e4 {[%emt 0:01:10]} Bg7 {[%emt 0:00:14]} 5. d4 {[%emt 0:00:04]} cxd4 {[%emt 0:00:06]} 6. Nxd4 {[%emt 0:00:04]} O-O {[%emt 0:00:52]} 7. Be2 {[%emt 0:00:04]} Nc6 {[%emt 0:00:11]} 8. Be3 {[%emt 0:00:07]} d6 {[%emt 0:00:19]} 9. O-O {[%emt 0:00:13]} Bd7 {[%emt 0:03:13]} 10. h3 {[%emt 0:03:46]} Nxd4 {[%emt 0:04:53]} 11. Bxd4 {[%emt 0:00:11]} Bc6 {[%emt 0:00:03]} 12. Qc2 {[%emt 0:02:07]} Rc8 {[%emt 0:03:13]} 13. b4 {[%emt 0:03:48]} a6 {[%emt 0:00:12]} 14. Rfd1 {[%emt 0:03:09]} Qc7 {[%emt 0:01:34]} 15. a4 {[%emt 0:07:01]} Rfd8 {[%emt 0:01:34]} 16. a5 {[%emt 0:26:41]} Nd7 {[%emt 0:02:04]} 17. Bxg7 {[%emt 0:01:18]} Kxg7 {[%emt 0:00:04]} 18. Qb2 {[%emt 0:01:01]} Nf6 {[%emt 0:00:53]} 19. b5 {[%emt 0:00:37]} axb5 {[%emt 0:00:43]} 20. cxb5 {[%emt 0:00:05]} Be8 {[%emt 0:00:54]} 21. Rdc1 {[%emt 0:00:26]} Qb8 {[%emt 0:13:34]} 22. Nd5 {[%emt 0:04:47]} e5 {[%emt 0:04:53]} 23. Nxf6 {[%emt 0:05:05]} Kxf6 {[%emt 0:01:02]} 24. Qb4 {[%emt 0:00:05]} Bd7 {[%emt 0:19:23]} 25. b6 {[%emt 0:01:12]} Be6 {[%emt 0:00:49]} 26. a6 {[%emt 0:01:14]} bxa6 {[%emt 0:05:13]} 27. Bxa6 {[%emt 0:00:48]} Rxc1+ {[%emt 0:04:03]} 28. Rxc1 {[%emt 0:00:34]} d5 {[%emt 0:02:25]} 29. exd5 {[%emt 0:05:28]} Bxd5 {[%emt 0:03:31]} 30. b7 {[%emt 0:00:36]} Kg7 {[%emt 0:02:22]} 31. Rd1 {[%emt 0:15:23]} Rd7 {[%emt 0:00:48]} 32. Qa5 {[%emt 0:07:52]} Be6 {[%emt 0:02:44]} 33. Rxd7 {[%emt 0:00:13]} Bxd7 {[%emt 0:00:05]} 34. Qc5 {[%emt 0:00:03]} h5 {[%emt 0:01:52]} 35. Qc8 {[%emt 0:01:59]} Bxc8 {[%emt 0:00:30]} 36. bxc8=Q {[%emt 0:00:10]} Qb1+ {[%emt 0:00:30]} 37. Bf1 {[%emt 0:00:06]} Qb2 {[%emt 0:00:30]} 38. h4 {[%emt 0:00:21]} Qd4 {[%emt 0:00:30]} 39. g3 {[%emt 0:00:09]} e4 {[%emt 0:00:30]} 40. Qc1 {[%emt 0:00:00]} 1-0

[Event "Polish Ekstraliga 2024"]
[Site "Walbrzych"]
[Date "2024.10.10"]
[Round "4.29"]
[White "Gesicki, Jacek"]
[Black "Tazbir, Marcin"]
[Result "1/2-1/2"]
[ECO "B50"]
[WhiteElo "2210"]
[BlackElo "2500"]
[Annotator "RC"]
[PlyCount "35"]
[EventDate "2024.10.05"]
[EventType "team-tourn"]
[EventCountry "POL"]
[SourceTitle "playchess.com"]
[Source "ChessBase"]
[SourceQuality "1"]
[WhiteTeam "Sedziszow Malopolski"]
[BlackTeam "Polonia Wroclaw"]
[TimeControl "40/5400+30:1800+30"]

1. e4 {[%emt 0:00:05]} c5 {[%emt 0:00:04]} 2. Nf3 {[%emt 0:00:08]} d6 {[%emt 0:00:14]} 3. c3 {[%emt 0:00:17]} Nf6 {[%emt 0:00:06]} 4. h3 {[%emt 0:00:18]} Nc6 {[%emt 0:00:25]} 5. Bd3 {[%emt 0:00:12]} g5 {[%emt 0:00:11]} 6. Bc2 {[%emt 0:01:25]} g4 {[%emt 0:00:32]} 7. hxg4 {[%emt 0:00:05]} Bxg4 {[%emt 0:00:05]} 8. d3 {[%emt 0:07:56]} d5 {[%emt 0:01:17]} 9. Qe2 {[%emt 0:00:18]} e6 {[%emt 0:00:09]} 10. Bg5 {[%emt 0:02:07]} Be7 {[%emt 0:10:51]} 11. Nbd2 {[%emt 0:02:29]} d4 {[%emt 0:08:50]} 12. Ba4 {[%emt 0:02:03]} Nd7 {[%emt 0:09:35]} 13. Bxe7 {[%emt 0:07:57]} Qxe7 {[%emt 0:00:16]} 14. Bxc6 {[%emt 0:00:43]} bxc6 {[%emt 0:00:04]} 15. Nc4 {[%emt 0:00:26]} e5 {[%emt 0:03:04]} 16. Rh6 {[%emt 0:07:29]} f6 {[%emt 0:00:52]} 17. Qd2 {[%emt 0:03:13]} Nb6 {[%emt 0:07:25]} 18. Na5 1/2-1/2